bitfinex/quotes_SOLUSD_20230120
["timestamp","ask_amount","ask_price","bid_price","bid_amount"]
[1674245679274,49.74,23.605,23.572,20.96287186]
[1674245679597,14.14215,23.604,23.579,30.96287186]
[1674245679814,31.78,23.603,23.579,30.96287186]
[1674245679998,31.78,23.603,23.58,20.96287186]
[1674245680335,10.0,23.602,23.58,20.96287186]
[1674245680544,53.88215,23.601,23.563,24.79]
[1674245680758,14.14215,23.6,23.569,20.96287186]
[1674245680961,52.93215,23.599,23.579,20.96287186]
[1674245681175,35.93215,23.599,23.579,20.96287186]
[1674245681493,21.14215,23.598,23.579,20.96287186]
[1674245681806,45.93215,23.597,23.579,10.0]
[1674245682117,45.93215,23.597,23.561,16.98]
[1674245682335,45.93215,23.597,23.579,20.96287186]
[1674245682640,17.96,23.596,23.579,20.96287186]
[1674245682852,4.14215,23.595,23.579,20.96287186]
[1674245683075,17.0,23.594,23.579,20.96287186]
[1674245683258,4.14215,23.593,23.561,16.98]
[1674245683467,24.54,23.59,23.551,13.68]
[1674245683677,45.94215,23.589,23.578,11340.87016]
[1674245683924,21.14215,23.588,23.578,11156.26546]
[1674245684108,36.90215,23.587,23.578,11102.47846]
[1674245684317,21.14215,23.586,23.578,11002.91126]
[1674245684537,36.90215,23.585,23.578,11002.91126]
[1674245684749,4.14215,23.584,23.578,10958.23796]
[1674245684944,31.8,23.588,23.578,10958.23796]
[1674245685154,21.14215,23.587,23.578,10958.23796]
[1674245685474,4.14215,23.586,23.578,10958.23796]
[1674245685900,17.0,23.585,23.578,10958.23796]
[1674245686106,31.8,23.588,23.578,10958.23796]
[1674245686330,31.79,23.594,23.578,10958.23796]
[1674245686635,14.14215,23.593,23.578,10958.23796]
[1674245686851,10.0,23.589,23.578,10958.23796]
[1674245687062,35.94215,23.588,23.578,10958.23796]
[1674245687267,4.14215,23.587,23.578,10958.23796]
[1674245687789,31.79,23.594,23.578,10958.23796]
[1674245688002,10.0,23.6,23.578,10958.23796]
[1674245688208,31.78,23.601,23.578,10958.23796]
[1674245688416,4.14215,23.6,23.578,10958.23796]
[1674245688626,4.14215,23.6,23.579,27.96]
[1674245688826,31.77,23.614,23.58,20.0]
[1674245689066,31.77,23.614,23.581,17.96]
[1674245689381,10.0,23.615,23.582,40.96287186]
[1674245689583,113.9069,23.617,23.583,27.96]
[1674245689791,113.9069,23.617,23.583,48.92287186]
[1674245690007,113.9069,23.617,23.584,30.96287186]
[1674245690233,113.9069,23.617,23.585,37.96]
[1674245690420,113.9069,23.617,23.585,58.92287186]
[1674245690634,4.14215,23.616,23.586,20.96287186]
[1674245690857,45.90215,23.616,23.587,17.96]
[1674245691053,14.14215,23.616,23.588,20.0]
[1674245691281,14.14215,23.616,23.589,17.96]
[1674245691485,14.14215,23.616,23.59,10.0]
[1674245691802,14.14215,23.616,23.591,37.96]
[1674245692227,17.0,23.615,23.591,37.96]
[1674245692443,4.14215,23.615,23.592,10.0]
[1674245692632,4.14215,23.615,23.593,37.96]
[1674245693376,4.14215,23.615,23.593,0.96]
[1674245693581,49.73,23.614,23.586,10.0]
[1674245693805,24.54,23.61,23.579,125.0391]
[1674245694025,52.91215,23.609,23.579,125.0391]
[1674245694222,5.10215,23.608,23.579,125.0391]
[1674245694421,35.92215,23.607,23.579,125.0391]
[1674245694632,4.14215,23.607,23.585,20.96287186]
[1674245694841,113.9069,23.617,23.585,20.96287186]
[1674245695047,113.9069,23.617,23.586,17.96]
[1674245695572,31.76,23.621,23.59,24.39]
[1674245695786,31.73,23.638,23.591,37.0]
[1674245695995,35.89215,23.626,23.592,0.96]
[1674245696215,4.14215,23.625,23.592,21.92287186]
[1674245696541,10.0,23.624,23.594,10.0]
[1674245696732,35.89215,23.623,23.595,37.96]
[1674245696942,4.14215,23.622,23.595,37.96]
[1674245697379,31.76,23.621,23.596,10.0]
[1674245697592,4.14215,23.622,23.597,17.96]
[1674245697786,110.4295,23.628,23.598,20.0]
[1674245697994,110.4295,23.628,23.6,10.0]
[1674245698322,110.4295,23.628,23.601,37.96]
[1674245698519,110.4295,23.628,23.602,10.0]
[1674245698730,110.4295,23.628,23.603,37.96]
[1674245698942,10.0,23.627,23.604,10.0]
[1674245699159,10.0,23.627,23.605,20.0]
[1674245699375,10.0,23.627,23.603,20.0]
[1674245699376,31.75,23.626,23.603,20.0]
[1674245699587,27.0,23.625,23.604,10.0]
[1674245699914,31.75,23.624,23.605,20.0]
[1674245700122,31.14215,23.625,23.605,20.0]
[1674245700311,31.75,23.624,23.602,10.0]
[1674245700520,110.4295,23.628,23.606,20.96287186]
[1674245700967,110.4295,23.628,23.607,0.96]
[1674245701159,10.0,23.627,23.607,0.96]
[1674245701368,9.5,23.627,23.604,20.0]
[1674245701701,35.89215,23.626,23.601,20.0]
[1674245702007,35.89215,23.626,23.595,20.96287186]
[1674245702008,4.14215,23.625,23.595,20.96287186]
[1674245702322,4.14215,23.625,23.601,20.96287186]
[1674245702513,9.5,23.627,23.602,14.987]
[1674245702728,10.0,23.632,23.603,20.0]
[1674245702933,31.74,23.635,23.603,40.96287186]
[1674245703163,138.4533,23.65,23.604,38.92287186]
[1674245703164,41.73,23.638,23.604,38.92287186]
[1674245703359,31.72,23.649,23.605,12.51860105]
[1674245703570,10.0,23.648,23.61,24.53]
[1674245703791,10.0,23.648,23.612,7.65927098]
[1674245703999,10.0,23.648,23.613,24.986]
[1674245704208,10.0,23.648,23.613,41.986]
[1674245704433,10.0,23.648,23.614,4.81071822]
[1674245704741,10.0,23.648,23.615,31.59002337]
[1674245704957,10.0,23.648,23.616,41.10081216]
[1674245705144,10.0,23.648,23.617,2.602]
[1674245705355,10.0,23.648,23.618,0.96]
[1674245705565,10.0,23.648,23.616,20.0]
[1674245705566,41.72,23.648,23.616,20.0]
[1674245705893,59.62791951,23.643,23.615,10.0]
[1674245706088,4.14215,23.642,23.619,10.0]
[1674245706298,31.73,23.641,23.619,10.0]
[1674245706506,4.14215,23.64,23.619,10.0]
[1674245706721,48.73,23.639,23.619,10.0]
[1674245706943,4.14215,23.638,23.611,119.4305]
[1674245707153,31.73,23.637,23.612,30.96287186]
[1674245707369,31.73,23.639,23.612,10.0]
[1674245707695,52.10215,23.638,23.612,10.0]
[1674245707888,52.10215,23.638,23.613,10.0]
[1674245707889,10.0,23.636,23.613,10.0]
[1674245708209,69.7,23.635,23.613,10.0]
[1674245708424,24.54,23.63,23.602,10.0]
[1674245708612,52.89215,23.629,23.602,10.0]
[1674245708954,1.0,23.624,23.602,30.96287186]
[1674245709137,1.0,23.624,23.602,10.0]
[1674245709871,1.0,23.624,23.602,30.96287186]
[1674245710617,1.0,23.624,23.603,20.0]
[1674245711049,1.0,23.624,23.604,20.96287186]
[1674245711234,1.0,23.624,23.606,10.0]
[1674245711459,1.0,23.624,23.607,37.96]
[1674245711654,1.0,23.624,23.608,10.0]
[1674245711866,1.0,23.624,23.609,17.96]
[1674245712102,1.0,23.624,23.609,38.92287186]
[1674245712407,1.0,23.624,23.611,10.0]
[1674245712619,10.0,23.64,23.613,10.0]
[1674245712932,10.0,23.64,23.614,58.92287186]
[1674245713354,10.0,23.64,23.615,30.96287186]
[1674245713671,14.14215,23.64,23.616,17.0]
[1674245713885,22.10215,23.639,23.613,10.0]
[1674245714076,4.14215,23.639,23.613,10.0]
[1674245714409,4.14215,23.639,23.613,30.96287186]
[1674245714613,10.0,23.64,23.613,47.89231886]
[1674245714827,10.0,23.641,23.614,20.0]
[1674245715034,41.72,23.648,23.615,5.38087879]
[1674245715352,41.72,23.649,23.616,57.96287186]
[1674245715570,10.0,23.646,23.617,10.96]
[1674245715785,10.0,23.646,23.618,37.0]
[1674245715969,10.0,23.646,23.619,5.83653359]
[1674245716175,10.0,23.646,23.621,5.46970694]
[1674245716388,10.0,23.649,23.622,20.96]
[1674245716602,10.0,23.649,23.623,17.0]
[1674245716911,10.0,23.649,23.624,20.96]
[1674245717134,10.0,23.653,23.63,24.54]
[1674245717344,10.0,23.653,23.632,7.49843765]
[1674245717549,17.929447,23.654,23.633,37.96]
[1674245717774,17.929447,23.654,23.634,4.59325082]
[1674245717989,10.0,23.669,23.64,24.37]
[1674245718175,31.67,23.682,23.641,37.96]
[1674245718386,35.81215,23.682,23.642,6.87413642]
[1674245718601,35.81215,23.682,23.643,37.96]
[1674245718822,24.51,23.68,23.643,57.96287186]
[1674245719016,24.54,23.67,23.643,68.7191592]
[1674245719234,35.83215,23.669,23.643,48.7191592]
[1674245719454,24.54,23.66,23.636,10.0]
[1674245719654,31.71,23.659,23.636,10.0]
[1674245719872,31.71,23.659,23.633,20.96287186]
[1674245719873,31.69,23.667,23.633,20.96287186]
[1674245720067,25.10215,23.666,23.633,20.96287186]
[1674245720278,10.0,23.658,23.633,20.96287186]
[1674245720819,10.0,23.658,23.634,10.0]
[1674245721458,10.0,23.658,23.635,20.96287186]
[1674245721772,10.0,23.664,23.635,20.96287186]
[1674245722169,20.0,23.663,23.635,20.96287186]
[1674245722380,55.84215,23.663,23.635,20.96287186]
[1674245722607,35.84215,23.663,23.636,17.0]
[1674245722821,35.84215,23.663,23.635,20.96287186]
[1674245723135,35.84215,23.663,23.631,10.0]
[1674245723136,10.0,23.661,23.631,10.0]
[1674245723340,31.7,23.66,23.631,10.0]
[1674245723551,31.7,23.66,23.632,41.92574372]
[1674245723748,31.7,23.66,23.632,20.96287186]
[1674245723974,31.7,23.66,23.631,10.0]
[1674245724274,27.0,23.659,23.628,113.5705]
[1674245724601,55.85215,23.658,23.628,113.5705]
[1674245724793,21.14215,23.657,23.628,113.5705]
[1674245725005,56.81215,23.656,23.628,113.5705]
[1674245725226,14.14215,23.655,23.628,113.5705]
[1674245725424,10.0,23.653,23.628,113.5705]
[1674245725653,68.71,23.652,23.628,113.5705]
[1674245725964,31.71,23.652,23.629,20.96287186]
[1674245726179,41.7,23.66,23.63,10.0]
[1674245726388,10.0,23.66,23.63,10.0]
[1674245726595,41.7,23.664,23.63,10.0]
[1674245726596,41.7,23.664,23.631,38.92287186]
[1674245726921,111.3766,23.661,23.632,40.96287186]
[1674245727106,111.3766,23.661,23.634,10.0]
[1674245727321,111.3766,23.661,23.635,17.0]
[1674245727532,10.0,23.66,23.636,10.96]
[1674245727751,10.0,23.66,23.637,17.0]
[1674245727947,111.3766,23.661,23.638,0.96]
[1674245728171,31.69,23.667,23.639,10.0]
[1674245728374,31.69,23.67,23.64,17.96]
[1674245728704,10.0,23.671,23.641,20.0]
[1674245729020,10.0,23.671,23.642,17.96]
[1674245729206,10.0,23.671,23.643,30.0]
[1674245729423,10.0,23.671,23.644,17.96]
[1674245729630,10.0,23.671,23.645,20.0]
[1674245729851,10.0,23.671,23.646,17.96]
[1674245730063,10.0,23.671,23.648,10.0]
[1674245730256,10.0,23.671,23.649,37.96]
[1674245730469,10.0,23.671,23.649,20.0]
[1674245730680,10.0,23.671,23.645,20.0]
[1674245730923,10.0,23.671,23.641,20.96287186]
[1674245731230,31.69,23.668,23.641,20.96287186]
[1674245731539,31.69,23.668,23.633,4.37040903]
[1674245731540,17.96,23.667,23.633,4.37040903]
[1674245731747,55.84215,23.666,23.632,10.0]
[1674245731961,55.84215,23.666,23.63,10.0]
[1674245731962,21.14215,23.665,23.63,10.0]
[1674245732168,65.84215,23.664,23.63,10.0]
[1674245732482,65.84215,23.664,23.628,113.5705]
[1674245732483,24.54,23.66,23.628,113.5705]
[1674245732674,72.85215,23.659,23.628,113.5705]
[1674245732892,14.14215,23.658,23.628,113.5705]
[1674245733100,73.81215,23.657,23.628,113.5705]
[1674245733317,4.14215,23.656,23.628,113.5705]
[1674245733522,48.71,23.655,23.628,113.5705]
[1674245733739,24.14215,23.654,23.628,113.5705]
[1674245733946,52.85215,23.653,23.628,113.5705]
[1674245734144,34.14215,23.652,23.628,113.5705]
[1674245734366,35.86215,23.651,23.628,113.5705]
[1674245734674,4.14215,23.651,23.629,20.90948359]
[1674245734883,10.0,23.658,23.629,20.90948359]
[1674245735090,10.0,23.658,23.63,10.0]
[1674245735516,10.0,23.658,23.63,30.90948359]
[1674245735731,10.0,23.658,23.631,37.96]
[1674245735936,10.0,23.658,23.632,10.0]
[1674245736153,10.0,23.658,23.633,37.96]
[1674245736365,10.0,23.658,23.634,10.0]
[1674245736577,10.0,23.658,23.635,17.96]
[1674245736794,10.0,23.66,23.636,20.0]
[1674245736990,10.0,23.662,23.637,10.96]
[1674245737206,10.0,23.662,23.638,20.0]
[1674245737411,10.0,23.662,23.639,17.96]
[1674245737615,10.0,23.664,23.639,17.96]
[1674245737840,10.0,23.664,23.64,40.90948359]
[1674245738046,10.0,23.67,23.641,27.96]
[1674245738263,10.0,23.67,23.642,20.0]
[1674245738473,10.0,23.67,23.643,0.96]
[1674245738666,10.0,23.67,23.643,21.86948359]
[1674245738879,10.0,23.67,23.644,10.0]
[1674245739215,10.0,23.67,23.645,21.86948359]
[1674245739831,10.0,23.67,23.645,0.96]
[1674245740470,10.0,23.67,23.647,10.0]
[1674245740663,10.0,23.67,23.648,17.96]
[1674245741295,10.0,23.67,23.648,0.96]
[1674245741527,10.0,23.67,23.649,20.90948359]
[1674245741735,10.0,23.674,23.65,37.96]
[1674245742147,10.0,23.674,23.651,30.90948359]
[1674245742356,10.0,23.679,23.652,17.96]
[1674245742568,10.0,23.679,23.653,1.213]
[1674245742788,10.0,23.681,23.654,6.23027164]
[1674245743098,10.0,23.682,23.656,4.73156037]
[1674245743312,31.66,23.693,23.657,17.96]
[1674245743503,104.0664,23.683,23.657,38.86948359]
[1674245743711,104.0664,23.683,23.658,40.90948359]
[1674245743940,104.0664,23.683,23.659,17.96]
[1674245744127,104.0664,23.683,23.66,20.0]
[1674245744343,10.0,23.682,23.661,17.96]
[1674245744559,10.0,23.682,23.662,20.0]
[1674245744889,31.68,23.681,23.655,10.0]
[1674245745095,31.68,23.681,23.642,10.55]
[1674245745347,14.14215,23.68,23.651,20.90948359]
[1674245745492,31.68,23.679,23.651,20.90948359]
[1674245745916,10.0,23.678,23.652,10.0]
[1674245746355,10.0,23.678,23.653,20.90948359]
[1674245746568,31.68,23.677,23.654,0.96]
[1674245746787,10.0,23.678,23.654,6.6700067]
[1674245746978,10.0,23.678,23.655,30.90948359]
[1674245747177,10.0,23.678,23.657,10.0]
[1674245747600,10.0,23.678,23.658,21.86948359]
[1674245747808,10.0,23.678,23.659,37.0]
[1674245748041,10.0,23.678,23.66,0.96]
[1674245748438,10.0,23.68,23.66,21.86948359]
[1674245748650,10.0,23.688,23.661,72.34948359]
[1674245748871,10.0,23.688,23.662,0.96]
[1674245749067,10.0,23.688,23.662,17.96]
[1674245749285,9.5,23.688,23.662,38.86948359]
[1674245749494,9.5,23.688,23.663,20.90948359]
[1674245749706,31.67,23.687,23.664,20.0]
[1674245750237,10.0,23.686,23.664,20.0]
[1674245750453,10.0,23.686,23.664,40.90948359]
[1674245751069,10.0,23.686,23.664,20.0]
[1674245751277,10.0,23.686,23.661,40.90948359]
[1674245751488,31.67,23.685,23.661,20.0]
[1674245751927,10.0,23.684,23.661,20.0]
[1674245752122,31.67,23.683,23.656,20.0]
[1674245752329,10.0,23.682,23.654,20.0]
[1674245752549,31.68,23.681,23.657,20.90948359]
[1674245752751,10.0,23.682,23.657,20.90948359]
[1674245752752,10.0,23.682,23.659,10.0]
[1674245753176,10.0,23.682,23.66,40.90948359]
[1674245753604,10.0,23.682,23.661,20.90948359]
[1674245753805,10.0,23.682,23.662,20.0]
[1674245754026,10.0,23.682,23.664,10.0]
[1674245754246,10.0,23.682,23.665,37.96]
[1674245754432,10.0,23.682,23.665,58.86948359]
[1674245754642,10.0,23.684,23.665,58.86948359]
[1674245754881,10.0,23.684,23.667,10.0]
[1674245755065,10.0,23.684,23.668,17.96]
[1674245755273,10.0,23.684,23.669,20.0]
[1674245755482,10.0,23.684,23.67,17.96]
[1674245755704,10.0,23.684,23.671,20.0]
[1674245755918,10.0,23.684,23.672,17.96]
[1674245756114,10.0,23.692,23.672,17.96]
[1674245756337,10.0,23.692,23.673,40.90948359]
[1674245756565,10.0,23.692,23.674,17.96]
[1674245756773,10.0,23.692,23.674,38.86948359]
[1674245756970,10.0,23.692,23.674,17.96]
[1674245757181,10.0,23.692,23.675,20.90948359]
[1674245757400,10.0,23.692,23.676,17.96]
[1674245757612,10.0,23.692,23.671,20.0]
[1674245757811,10.0,23.692,23.672,0.96]
[1674245758021,10.0,23.692,23.672,20.90948359]
[1674245758237,10.0,23.692,23.673,41.86948359]
[1674245758453,38.26038123,23.698,23.673,20.90948359]
[1674245758671,10.0,23.7,23.675,10.0]
[1674245758867,10.0,23.7,23.676,20.0]
[1674245759076,10.0,23.7,23.677,17.96]
[1674245759296,10.0,23.7,23.678,20.0]
[1674245759618,31.63,23.719,23.681,5.66408952]
[1674245759827,24.1,23.72,23.682,0.96]
[1674245760014,31.63,23.719,23.68,37.0]
[1674245760229,10.0,23.718,23.683,20.90948359]
[1674245760443,31.65,23.703,23.684,17.0]
[1674245760655,31.63,23.717,23.685,0.96]
[1674245760884,31.63,23.717,23.685,21.86948359]
[1674245761069,31.63,23.717,23.686,37.90948359]
[1674245761279,10.0,23.716,23.687,20.96]
[1674245761489,31.63,23.715,23.688,17.0]
[1674245761712,31.65,23.703,23.688,20.90948359]
[1674245761928,24.31,23.7,23.668,116.3611]
[1674245762135,31.65,23.699,23.668,20.90948359]
[1674245762875,31.65,23.699,23.67,5.22237073]
[1674245763093,10.0,23.698,23.669,125.5591]
[1674245763271,10.0,23.698,23.671,20.90948359]
[1674245763482,10.0,23.698,23.672,4.40809555]
[1674245763695,10.0,23.703,23.673,10.0]
[1674245763907,31.63,23.715,23.681,7.77185521]
[1674245764123,10.0,23.716,23.682,20.0]
[1674245764335,10.0,23.716,23.683,22.61753925]
[1674245764546,10.0,23.716,23.684,25.59723383]
[1674245764854,10.0,23.716,23.686,7.3764042]
[1674245765188,31.63,23.715,23.687,20.0]
[1674245765396,31.63,23.715,23.686,20.0]
[1674245765614,31.63,23.715,23.687,20.90948359]
[1674245765799,24.25,23.71,23.684,115.5591]
[1674245766005,24.07,23.69,23.64,24.24]
[1674245766225,31.17,23.689,23.658,116.5504]
[1674245766442,31.17,23.689,23.665,20.90948359]
[1674245766654,24.21,23.68,23.658,116.5504]
[1674245766860,31.68,23.679,23.654,20.90948359]
[1674245767069,24.25,23.68,23.644,116.5504]
[1674245767284,72.82215,23.679,23.644,116.5504]
[1674245767610,4.14215,23.678,23.644,116.5504]
[1674245767795,41.68,23.677,23.645,30.90948359]
[1674245768011,5.10215,23.676,23.645,30.90948359]
[1674245768224,72.82215,23.675,23.645,10.0]
[1674245768435,4.14215,23.674,23.645,10.0]
[1674245768647,4.14215,23.674,23.644,116.5504]
[1674245768648,24.31,23.67,23.644,116.5504]
[1674245768862,52.83215,23.669,23.621,10.80958494]
[1674245769083,52.83215,23.669,23.623,7.05738799]
[1674245769084,24.21,23.66,23.623,7.05738799]
[1674245769276,31.71,23.659,23.623,11.38638799]
[1674245769490,31.71,23.659,23.625,7.34108935]
[1674245769697,23.75576951,23.666,23.624,20.90948359]
[1674245769908,23.75576951,23.666,23.622,116.0038]
[1674245769909,24.31,23.66,23.626,30.90948359]
[1674245770119,83.80215,23.665,23.627,5.09729797]
[1674245770120,14.14215,23.665,23.627,5.09729797]
[1674245770337,14.14215,23.665,23.628,5.60995884]
[1674245770338,4.14215,23.665,23.628,5.60995884]
[1674245770541,10.0,23.669,23.629,8.372]
[1674245770755,31.69,23.671,23.631,4.13594873]
[1674245770963,31.68,23.676,23.64,24.11]
[1674245771184,10.0,23.679,23.642,6.95698946]
[1674245771397,10.0,23.679,23.643,50.09]
[1674245771592,10.0,23.679,23.644,5.69813525]
[1674245771801,10.0,23.681,23.646,5.64545229]
[1674245772025,10.0,23.681,23.647,50.49]
[1674245772228,31.68,23.68,23.647,37.96]
[1674245772564,24.31,23.67,23.646,20.90948359]
[1674245772761,45.83215,23.669,23.631,19.92960288]
[1674245772955,45.83215,23.669,23.647,20.90948359]
[1674245773606,35.83215,23.669,23.648,10.0]
[1674245773797,31.69,23.669,23.648,10.0]
[1674245774004,31.68,23.678,23.649,20.90948359]
[1674245774232,31.68,23.678,23.65,20.0]
[1674245774547,31.68,23.678,23.651,47.90948359]
[1674245774765,10.0,23.679,23.652,20.96]
[1674245774972,10.0,23.679,23.653,17.0]
[1674245775165,10.0,23.679,23.654,0.96]
[1674245775377,31.68,23.68,23.654,21.86948359]
[1674245775588,41.67,23.682,23.655,47.90948359]
[1674245775813,41.67,23.682,23.656,20.96]
[1674245776026,41.67,23.682,23.656,20.90948359]
[1674245776235,24.25,23.68,23.653,17.0]
[1674245776439,35.82215,23.679,23.651,20.90948359]
[1674245776761,24.07,23.67,23.642,10.0]
[1674245776955,14.14215,23.678,23.642,10.0]
[1674245777167,24.1,23.67,23.643,20.90948359]
[1674245777698,10.0,23.678,23.644,10.0]
[1674245777699,31.69,23.669,23.644,10.0]
[1674245777923,31.68,23.677,23.644,10.0]
[1674245778114,31.68,23.677,23.645,20.856156]
[1674245778320,31.68,23.677,23.646,5.16058918]
[1674245778531,31.68,23.677,23.645,20.856156]
[1674245778532,31.68,23.681,23.648,17.82779194]
[1674245778753,41.67,23.682,23.65,7.53878842]
[1674245779092,10.0,23.682,23.651,27.96]
[1674245779274,10.0,23.682,23.652,4.48246172]
[1674245779484,34.25,23.68,23.653,17.0]
[1674245779694,31.68,23.679,23.653,17.0]
[1674245779905,31.68,23.679,23.652,17.0]
[1674245780326,31.68,23.679,23.652,37.856156]
[1674245780536,31.67,23.686,23.653,10.0]
[1674245780753,31.67,23.686,23.654,37.0]
[1674245781067,31.67,23.686,23.655,29.52002334]
[1674245781289,10.0,23.687,23.656,54.28]
[1674245781608,10.0,23.687,23.657,10.96]
[1674245781803,10.0,23.687,23.658,37.0]
[1674245782012,10.0,23.687,23.659,0.96]
[1674245782013,31.67,23.686,23.659,0.96]
[1674245782220,24.07,23.68,23.655,118.9051]
[1674245782429,24.07,23.68,23.644,15.05202595]
[1674245782430,41.68,23.679,23.644,10.0]
[1674245782634,4.14215,23.678,23.646,118.9051]
[1674245782978,24.21,23.67,23.646,10926.7248]
[1674245783179,31.69,23.669,23.646,10926.7248]
[1674245783586,31.69,23.669,23.647,10.0]
[1674245784758,41.68,23.677,23.647,10.0]
[1674245784971,24.25,23.7,23.648,20.856156]
[1674245784972,4.14215,23.676,23.648,20.856156]
[1674245785289,31.67,23.682,23.649,4.56175505]
[1674245785599,31.67,23.686,23.65,61.286156]
[1674245785785,24.31,23.68,23.651,20.0]
[1674245785996,31.68,23.679,23.652,0.96]
[1674245786228,55.43576951,23.679,23.652,0.96]
[1674245786553,33.75576951,23.678,23.652,0.96]
[1674245786754,31.68,23.677,23.652,0.96]
[1674245786960,31.68,23.677,23.647,10.0]
[1674245786961,10.0,23.675,23.647,10.0]
[1674245787281,24.07,23.67,23.646,10926.7248]
[1674245787483,41.69,23.669,23.646,10926.7248]
[1674245787800,58.69,23.669,23.646,10926.7248]
[1674245787996,41.69,23.669,23.646,10926.7248]
[1674245788207,4.14215,23.668,23.646,10926.7248]
[1674245788418,4.14215,23.668,23.647,10.0]
[1674245789068,4.14215,23.668,23.648,17.96]
[1674245789254,10.0,23.682,23.648,24.409]
[1674245789462,10.0,23.682,23.649,10.0]
[1674245789463,24.1,23.68,23.649,10.0]
[1674245789689,10.0,23.678,23.651,10.0]
[1674245789910,31.68,23.677,23.652,20.0]
[1674245790090,24.31,23.67,23.649,10.0]
[1674245790304,31.69,23.669,23.649,10.0]
[1674245790516,23.75576951,23.676,23.649,10.0]
[1674245790721,31.68,23.675,23.649,10.0]
[1674245790936,4.14215,23.674,23.649,10.0]
[1674245791163,4.14215,23.674,23.649,30.856156]
[1674245791591,31.69,23.673,23.649,10.0]
[1674245792199,24.31,23.67,23.647,10.0]
[1674245792419,41.69,23.669,23.647,10.0]
[1674245793038,17.0,23.668,23.647,10.0]
[1674245793249,31.69,23.667,23.647,10.0]
[1674245793458,17.0,23.666,23.647,10.0]
[1674245793684,31.7,23.665,23.647,10.0]
[1674245793900,31.69,23.668,23.647,10.0]
[1674245794325,24.31,23.67,23.647,10.0]
[1674245794635,4.14215,23.668,23.647,10.0]
[1674245795039,48.69,23.667,23.647,10.0]
[1674245795246,4.14215,23.666,23.647,10.0]
[1674245795892,17.0,23.665,23.647,10.0]
[1674245796102,17.0,23.665,23.622,7.012]
[1674245796103,48.7,23.665,23.622,7.012]
[1674245796299,10.0,23.659,23.622,7.012]
[1674245796513,17.0,23.658,23.623,112.8168]
[1674245796731,17.0,23.658,23.624,2.745]
[1674245797143,17.0,23.658,23.623,112.8168]
[1674245797144,31.71,23.657,23.623,112.8168]
[1674245797357,10.0,23.655,23.646,10917.2685]
[1674245797557,69.67,23.654,23.646,10917.2685]
[1674245797775,31.71,23.654,23.646,10917.2685]
[1674245797992,31.71,23.658,23.646,10917.2685]
[1674245798404,31.7,23.662,23.646,10917.2685]
[1674245798608,4.14215,23.659,23.647,10.0]